fUST/lending_fUST_20250606
["ID","MTS","AMOUNT","RATE_DAILY","PERIOD"]
[364737174,1749222657780,-150.0,0.00019468,2]
[364737175,1749222657789,-440.0,0.00019726,2]
[364737176,1749222657798,-440.0,0.0002,2]
[364737177,1749222657807,-467.57909443,0.00020273,2]
[364737178,1749222657816,-150.0,0.00020353,2]
[364737179,1749222657825,-188.83,0.00021238,2]
[364737180,1749222657834,-236.03,0.00022123,2]
[364737181,1749222657843,-283.24,0.00023008,2]
[364737182,1749222657852,-151.0,0.00023521,7]
[364737183,1749222657861,-423.83542519,0.000236,3]
[364737184,1749222657870,-151.0,0.0002378,7]
[364737185,1749222657879,-151.0,0.0002378,7]
[364737186,1749222657888,-195.550313,0.0002378,7]
[364737187,1749222657897,-195.550313,0.0002378,7]
[364737188,1749222657906,-330.45,0.00023893,2]
[364737189,1749222657915,-423.83542519,0.00024,7]
[364737190,1749222657924,-151.0,0.00024071,7]
[364737191,1749222657932,-195.550313,0.00024071,7]
[364737192,1749222657941,-211243.6934242,0.00024071,7]
[364737193,1749222716259,150.0,0.00018505,2]
[364737196,1749222758238,-184.52959411,0.00019068,2]
[364737197,1749222758269,-303.55392084,0.00019078,3]
[364737198,1749222758299,-163.27,0.00019168,2]
[364737199,1749222758468,-300.0,0.00019177,2]
[364737200,1749222758494,-440.0,0.00019178,2]
[364737201,1749222758521,-845.34,0.00019178,2]
[364737202,1749222758548,-2744.54,0.00019178,2]
[364737203,1749222758571,-440.0,0.00019178,2]
[364737204,1749222758595,-440.0,0.00019178,2]
[364737205,1749222758618,-440.0,0.00019178,2]
[364737206,1749222758639,-440.0,0.00019178,2]
[364737207,1749222758664,-1294.9,0.00019178,2]
[364737208,1749222758686,-440.0,0.00019178,2]
[364737209,1749222758710,-516.51,0.00019178,2]
[364737210,1749222758732,-440.0,0.00019178,2]
[364737211,1749222758754,-584.96217928,0.00019178,2]
[364737212,1749222758777,-440.0,0.00019178,2]
[364737213,1749222758798,-441.46446297,0.00019178,2]
[364737214,1749222758822,-440.0,0.00019178,2]
[364737215,1749222758844,-330.0,0.00019178,2]
[364737216,1749222758866,-440.0,0.00019178,2]
[364737217,1749222758888,-440.0,0.00019178,2]
[364737218,1749222758910,-430.0,0.00019178,2]
[364737219,1749222758935,-731.52,0.00019178,2]
[364737220,1749222758956,-440.0,0.00019178,2]
[364737221,1749222758978,-443.45306503,0.00019178,2]
[364737222,1749222759000,-440.0,0.00019178,2]
[364737223,1749222759026,-535.49,0.00019178,2]
[364737224,1749222759047,-414.84690033,0.00019178,2]
[364737225,1749222759068,-204.04723304,0.00019178,2]
[364737226,1749222759091,-440.0,0.00019178,2]
[364737227,1749222759114,-440.0,0.00019178,2]
[364737228,1749222759137,-440.0,0.00019178,2]
[364737229,1749222759159,-440.0,0.00019178,2]
[364737230,1749222759181,-431.59653905,0.00019178,2]
[364737231,1749222759206,-440.0,0.00019178,2]
[364737232,1749222759229,-430.0,0.00019178,2]
[364737233,1749222759254,-440.0,0.00019178,2]
[364737234,1749222759275,-440.0,0.00019178,2]
[364737235,1749222759300,-440.0,0.00019178,2]
[364737236,1749222759325,-226.42307629,0.00019178,2]
[364737237,1749222759349,-440.0,0.00019178,2]
[364737238,1749222759370,-440.0,0.00019178,2]
[364737239,1749222759394,-506.4,0.00019178,2]
[364737240,1749222759416,-430.0,0.00019178,2]
[364737241,1749222759440,-440.0,0.00019178,2]
[364737243,1749222759461,-440.0,0.00019178,2]
[364737244,1749222759483,-442.74556982,0.00019178,2]
[364737245,1749222759504,-444.77178942,0.00019178,2]
[364737246,1749222759525,-440.0,0.00019178,2]
[364737247,1749222759547,-287.19122259,0.00019178,2]
[364737248,1749222759568,-440.0,0.00019178,2]
[364737249,1749222759595,-511.64,0.00019178,2]
[364737250,1749222759620,-2619.76,0.00019178,2]
[364737251,1749222759644,-440.0,0.00019178,2]
[364737252,1749222759668,-420.0,0.00019178,2]
[364737253,1749222759690,-440.0,0.00019178,2]
[364737254,1749222759712,-545.09047494,0.00019178,2]
[364737255,1749222759733,-440.0,0.00019178,2]
[364737256,1749222759754,-440.0,0.00019178,2]
[364737257,1749222759778,-440.0,0.00019178,2]
[364737258,1749222759801,-440.0,0.00019178,2]
[364737259,1749222759824,-440.0,0.00019178,2]
[364737260,1749222759849,-440.0,0.00019178,2]
[364737261,1749222759871,-440.0,0.00019178,2]
[364737262,1749222759893,-440.0,0.00019178,2]
[364737263,1749222759916,-430.0,0.00019178,2]
[364737264,1749222759938,-440.0,0.00019178,2]
[364737265,1749222759963,-150.0,0.00019386,2]
[364737266,1749222759987,-300.0,0.00019451,2]
[364737267,1749222760012,-845.34,0.00019452,2]
[364737268,1749222760038,-2744.54,0.00019452,2]
[364737269,1749222760063,-440.0,0.00019452,2]
[364737270,1749222760090,-440.0,0.00019452,2]
[364737271,1749222760117,-1294.9,0.00019452,2]
[364737272,1749222760143,-516.51,0.00019452,2]
[364737273,1749222760166,-440.0,0.00019452,2]
[364737274,1749222760190,-440.0,0.00019452,2]
[364737275,1749222760217,-731.52,0.00019452,2]
[364737276,1749222760239,-166.46221123,0.00019452,2]
[364737277,1749222760266,-535.49,0.00019452,2]
[364737278,1749222760290,-440.0,0.00019452,2]
[364737279,1749222760313,-440.0,0.00019452,2]
[364737280,1749222760339,-440.0,0.00019452,2]
[364737281,1749222760362,-440.0,0.00019452,2]
[364737282,1749222760387,-440.0,0.00019452,2]
[364737283,1749222760411,-428.05932792,0.00019452,2]
[364737284,1749222760440,-440.0,0.00019452,2]
[364737285,1749222760471,-440.0,0.00019452,2]
[364737286,1749222760496,-430.0,0.00019452,2]
[364737287,1749222760521,-506.4,0.00019452,2]
[364737288,1749222760546,-440.0,0.00019452,2]
[364737289,1749222760570,-495.39,0.00019452,2]
[364737290,1749222760597,-511.64,0.00019452,2]
[364737291,1749222760623,-2619.76,0.00019452,2]
[364737292,1749222760647,-440.0,0.00019452,2]
[364737293,1749222760670,-440.0,0.00019452,2]
[364737294,1749222760694,-440.0,0.00019452,2]
[364737295,1749222760716,-440.0,0.00019452,2]
[364737296,1749222760874,-845.34,0.00019726,2]
[364737297,1749222760900,-2744.54,0.00019726,2]
[364737298,1749222760925,-440.0,0.00019726,2]
[364737299,1749222760948,-365.61,0.00019726,2]
[364737300,1749222760973,-1294.9,0.00019726,2]
[364737301,1749222760997,-79.55243314,0.00019726,2]
[364737303,1749222792794,150.0,0.00018581,2]
[364737304,1749222807865,2668.16448707,0.00018661,2]
[364737305,1749222807892,19018.6538,0.00018661,2]
[364737306,1749222807916,3213.18171293,0.00018661,2]
[364737307,1749222812252,205.4571547,0.00024657,120]
[364737308,1749222824984,-300.0,0.00019177,2]
[364737309,1749222825309,-440.0,0.00019178,2]
[364737310,1749222825342,-440.0,0.00019178,2]
[364737311,1749222825367,-440.0,0.00019178,2]
[364737312,1749222825391,-440.0,0.00019178,2]
[364737313,1749222825414,-440.0,0.00019178,2]
[364737314,1749222825439,-440.0,0.00019178,2]
[364737315,1749222825462,-440.0,0.00019178,2]
[364737316,1749222825484,-440.0,0.00019178,2]
[364737317,1749222825507,-440.0,0.00019178,2]
[364737318,1749222825529,-214.13083893,0.00019178,2]
[364737319,1749222825553,-440.0,0.00019178,2]
[364737320,1749222825575,-465.28506817,0.00019178,2]
[364737321,1749222825598,-440.0,0.00019178,2]
[364737322,1749222825622,-440.0,0.00019178,2]
[364737323,1749222825644,-440.0,0.00019178,2]
[364737324,1749222825667,-440.0,0.00019178,2]
[364737325,1749222825690,-440.0,0.00019178,2]
[364737326,1749222825715,-491.77,0.00019178,2]
[364737327,1749222825736,-279.8140929,0.00019178,2]
[364737328,1749222893041,201.5500455,0.00018751,2]
[364737329,1749222903224,2871.69483821,0.00019,2]
[364737330,1749222945205,150.0,0.00018746,2]
[364737332,1749223024030,150.0,0.00018743,2]
[364737333,1749223033334,4008.3611071,0.0001838,2]
[364737334,1749223073220,1567.114526,0.0001838,2]
[364737335,1749223099269,150.0,0.00018584,2]
[364737337,1749223174884,150.0,0.00018696,2]
[364737338,1749223249825,150.0,0.00018526,2]
[364737340,1749223271046,273.935633,0.00013699,2]
[364737341,1749223323744,150.0,0.00018612,2]
[364737342,1749223375415,500.0,0.00024,120]
[364737343,1749223398316,150.0,0.00018633,2]
[364737344,1749223410232,1135.8653316,0.00018172,2]
[364737345,1749223479435,162.8601736,0.0001817,2]
[364737346,1749223480411,150.0,0.0001853,2]
[364737347,1749223484260,861.4206246,0.0001817,2]
[364737359,1749223560880,150.0,0.00018518,2]
[364737362,1749223634685,150.0,0.0001856,2]
[364737363,1749223636311,-200.97690194,0.00019066,2]
[364737364,1749223636334,-454.44607832,0.00019068,2]
[364737365,1749223636355,-369.39752752,0.0001907,2]
[364737366,1749223636377,-555.17,0.00019166,3]
[364737367,1749223636400,-300.0,0.00019167,2]
[364737368,1749223636423,-1200.0,0.00019168,2]
[364737369,1749223636446,-6278.8934008,0.00019168,2]
[364737370,1749223640119,-931.67900597,0.00019168,2]
[364737371,1749223649117,-9142.36804815,0.00019168,2]
[364737373,1749223666736,3222.66980746,0.00018,2]
[364737374,1749223666760,1642.95386634,0.00018,2]
[364737382,1749223698176,157.80180675,0.000187,2]
[364737383,1749223709505,150.0,0.00017043,2]
[364737386,1749223709968,150.0,0.00017855,2]
[364737387,1749223710899,215.51,0.00018666,2]
[364737388,1749223712950,728.47350963,0.00018,2]
[364737389,1749223713781,5062.10553099,0.00018,2]
[364737390,1749223716230,151.0,0.0002,120]
[364737392,1749223717184,365.44508446,0.00024,120]
[364737401,1749223790178,150.0,0.00016984,2]
[364737402,1749223790600,150.0,0.00017793,2]
[364737403,1749223791039,195.83,0.00018602,2]
[364737407,1749223828034,835.85485566,0.000189,2]
[364737503,1749223833085,-631.25327941,0.00019,2]
[364737505,1749223833098,-306.02,0.00019158,3]
[364737507,1749223833111,-153.01,0.00019158,3]
[364737509,1749223833123,-300.0,0.00019167,2]
[364737511,1749223833136,-300.0,0.00019167,2]
[364737514,1749223833149,-300.0,0.00019167,2]
[364737516,1749223833161,-300.0,0.00019167,2]
[364737518,1749223833173,-1200.0,0.00019167,2]
[364737520,1749223833186,-2815.64464743,0.00019168,2]
[364737522,1749223833198,-2815.64464743,0.00019168,2]
[364737525,1749223833210,-2815.64464743,0.00019168,2]
[364737527,1749223833222,-2815.64464743,0.00019168,2]
[364737529,1749223833235,-2815.64464743,0.00019168,2]
[364737531,1749223833247,-2815.64464743,0.00019168,2]
[364737534,1749223833259,-2815.64464743,0.00019168,2]
[364737536,1749223833270,-2815.64464743,0.00019168,2]
[364737538,1749223833281,-2815.64464743,0.00019168,2]
[364737540,1749223833293,-2815.64464743,0.00019168,2]
[364737542,1749223833305,-2815.64464743,0.00019168,2]
[364737544,1749223833316,-2815.64464743,0.00019168,2]
[364737546,1749223833328,-2815.64464743,0.00019168,2]
[364737549,1749223833339,-2815.64464743,0.00019168,2]
[364737551,1749223833351,-2815.64464743,0.00019168,2]
[364737553,1749223833362,-2815.64464743,0.00019168,2]
[364737555,1749223833374,-2815.64464743,0.00019168,2]
[364737557,1749223833385,-2925.14193929,0.00019168,2]
[364737559,1749223833396,-2925.14193929,0.00019168,2]
[364737562,1749223833408,-2925.14193929,0.00019168,2]
[364737564,1749223833419,-2925.14193929,0.00019168,2]
[364737566,1749223833430,-2925.14193929,0.00019168,2]
[364737568,1749223833442,-2925.14193929,0.00019168,2]
[364737570,1749223833453,-2925.14193929,0.00019168,2]
[364737572,1749223833465,-2925.14193929,0.00019168,2]
[364737575,1749223833476,-2925.14193929,0.00019168,2]
[364737577,1749223833488,-7121.31962234,0.00019168,2]
[364737579,1749223833499,-300.0,0.00019169,2]
[364737581,1749223833510,-481.66685971,0.00019173,2]
[364737583,1749223833521,-500.0,0.00019173,2]
[364737585,1749223833532,-500.0,0.00019173,2]
[364737587,1749223833543,-500.0,0.00019173,2]
[364737590,1749223833554,-500.0,0.00019173,2]
[364737592,1749223833567,-500.0,0.00019173,2]
[364737594,1749223833580,-500.0,0.00019173,2]
[364737596,1749223833591,-500.0,0.00019173,2]
[364737598,1749223833602,-153.84119024,0.00019173,2]
[364737600,1749223833614,-445.72496785,0.00019173,2]
[364737602,1749223833625,-500.0,0.00019173,2]
[364737604,1749223833636,-500.0,0.00019173,2]
[364737607,1749223833649,-500.0,0.00019173,2]
[364737609,1749223833662,-500.0,0.00019173,2]
[364737611,1749223833673,-153.43569152,0.00019173,2]
[364737613,1749223833686,-502.85913345,0.00019173,2]
[364737615,1749223833699,-500.0,0.00019173,2]
[364737618,1749223833710,-500.0,0.00019173,2]
[364737620,1749223833721,-152.90414247,0.00019173,2]
[364737622,1749223833732,-503.64016206,0.00019173,2]
[364737624,1749223833743,-500.0,0.00019173,2]
[364737626,1749223833754,-500.0,0.00019173,2]
[364737628,1749223833763,-201.99898396,0.00019173,2]
[364737630,1749223833773,-300.62033362,0.00019173,2]
[364737632,1749223833783,-500.0,0.00019173,2]
[364737634,1749223833793,-255.96441084,0.00019173,2]
[364737636,1749223833802,-500.0,0.00019177,2]
[364737638,1749223833812,-415.78667442,0.00019177,2]
[364737640,1749223833823,-500.0,0.00019177,2]
[364737642,1749223833834,-430.0,0.00019178,2]
[364737662,1749223834026,-301.60213888,0.00019178,2]
[364737665,1749223834045,-440.0,0.00019178,2]
[364737666,1749223834055,-440.0,0.00019178,2]
[364737667,1749223834065,-440.0,0.00019178,2]
[364737668,1749223834074,-440.0,0.00019178,2]
[364737669,1749223834083,-400.0,0.00019178,2]
[364737670,1749223834093,-224.57270511,0.00019178,2]
[364737671,1749223834103,-440.0,0.00019178,2]
[364737672,1749223834113,-430.0,0.00019178,2]
[364737673,1749223834122,-440.0,0.00019178,2]
[364737674,1749223834131,-440.0,0.00019178,2]
[364737675,1749223834140,-440.0,0.00019178,2]
[364737676,1749223834150,-440.0,0.00019178,2]
[364737677,1749223834159,-440.0,0.00019178,2]
[364737678,1749223834168,-430.0,0.00019178,2]
[364737679,1749223834178,-440.0,0.00019178,2]
[364737680,1749223834190,-440.0,0.00019178,2]
[364737681,1749223834200,-440.0,0.00019178,2]
[364737682,1749223834210,-383.8502655,0.00019178,2]
[364737683,1749223834221,-430.0,0.00019178,2]
[364737684,1749223834234,-440.0,0.00019178,2]
[364737685,1749223834248,-440.0,0.00019178,2]
[364737686,1749223834257,-440.0,0.00019178,2]
[364737687,1749223834267,-430.0,0.00019178,2]
[364737688,1749223834276,-440.0,0.00019178,2]
[364737689,1749223834285,-440.0,0.00019178,2]
[364737690,1749223834295,-430.0,0.00019178,2]
[364737691,1749223834304,-440.0,0.00019178,2]
[364737693,1749223834314,-440.0,0.00019178,2]
[364737695,1749223834323,-440.0,0.00019178,2]
[364737697,1749223834333,-440.0,0.00019178,2]
[364737699,1749223834342,-521.95540922,0.00019178,2]
[364737701,1749223834351,-440.0,0.00019178,2]
[364737703,1749223834361,-430.0,0.00019178,2]
[364737705,1749223834372,-440.0,0.00019178,2]
[364737707,1749223834382,-440.0,0.00019178,2]
[364737709,1749223834392,-430.0,0.00019178,2]
[364737711,1749223834402,-440.0,0.00019178,2]
[364737713,1749223834411,-440.0,0.00019178,2]
[364737715,1749223834422,-440.0,0.00019178,2]
[364737717,1749223834432,-229.81236307,0.00019178,2]
[364737719,1749223834441,-440.0,0.00019178,2]
[364737721,1749223834451,-440.0,0.00019178,2]
[364737723,1749223834461,-420.0,0.00019178,2]
[364737725,1749223834470,-440.0,0.00019178,2]
[364737727,1749223834480,-430.0,0.00019178,2]
[364737729,1749223834490,-277.36376202,0.00019178,2]
[364737731,1749223834499,-314.78387305,0.00019178,2]
[364737733,1749223834509,-440.0,0.00019178,2]
[364737735,1749223834518,-430.0,0.00019178,2]
[364737737,1749223834528,-440.0,0.00019178,2]
[364737739,1749223834537,-440.0,0.00019178,2]
[364737741,1749223834547,-440.0,0.00019178,2]
[364737743,1749223834556,-430.0,0.00019178,2]
[364737745,1749223834567,-440.0,0.00019178,2]
[364737747,1749223834578,-430.0,0.00019178,2]
[364737749,1749223834587,-400.0,0.00019178,2]
[364737751,1749223834597,-400.0,0.00019178,2]
[364737753,1749223834607,-264.63030653,0.00019178,2]
[364737754,1749223834617,-430.0,0.00019178,2]
[364737756,1749223834627,-440.0,0.00019178,2]
[364737758,1749223834636,-440.0,0.00019178,2]
[364737760,1749223834647,-375.24844841,0.00019178,2]
[364737762,1749223834665,-440.0,0.00019178,2]
[364737764,1749223834674,-430.0,0.00019178,2]
[364737766,1749223834687,-430.0,0.00019178,2]
[364737768,1749223834698,-440.0,0.00019178,2]
[364737770,1749223834708,-440.0,0.00019178,2]
[364737772,1749223834719,-440.0,0.00019178,2]
[364737774,1749223834730,-440.0,0.00019178,2]
[364737776,1749223834740,-440.0,0.00019178,2]
[364737778,1749223834751,-440.0,0.00019178,2]
[364737780,1749223834761,-440.0,0.00019178,2]
[364737782,1749223834770,-440.0,0.00019178,2]
[364737784,1749223834780,-324.46209184,0.00019178,2]
[364737786,1749223834789,-440.0,0.00019178,2]
[364737788,1749223834798,-440.0,0.00019178,2]
[364737790,1749223834808,-440.0,0.00019178,2]
[364737792,1749223834817,-440.0,0.00019178,2]
[364737794,1749223834827,-301.68828176,0.00019178,2]
[364737796,1749223834836,-430.0,0.00019178,2]
[364737797,1749223834845,-440.0,0.00019178,2]
[364737799,1749223834855,-440.0,0.00019178,2]
[364737802,1749223834864,-440.0,0.00019178,2]
[364737804,1749223834874,-440.0,0.00019178,2]
[364737806,1749223834883,-350.58208313,0.00019178,2]
[364737808,1749223834893,-430.0,0.00019178,2]
[364737809,1749223834902,-440.0,0.00019178,2]
[364737811,1749223834912,-440.0,0.00019178,2]
[364737813,1749223834921,-464.90269576,0.00019178,2]
[364737815,1749223834931,-440.0,0.00019178,2]
[364737817,1749223834940,-440.0,0.00019178,2]
[364737820,1749223834950,-440.0,0.00019178,2]
[364737822,1749223834960,-440.0,0.00019178,2]
[364737824,1749223834970,-440.0,0.00019178,2]
[364737826,1749223834980,-440.0,0.00019178,2]
[364737827,1749223834990,-440.0,0.00019178,2]
[364737828,1749223834999,-440.0,0.00019178,2]
[364737829,1749223835009,-444.30198561,0.00019178,2]
[364737830,1749223835019,-322.92389835,0.00019178,2]
[364737831,1749223835028,-440.0,0.00019178,2]
[364737832,1749223835038,-440.0,0.00019178,2]
[364737833,1749223835047,-440.0,0.00019178,2]
[364737834,1749223835057,-440.0,0.00019178,2]
[364737835,1749223835067,-430.0,0.00019178,2]
[364737836,1749223835077,-430.0,0.00019178,2]
[364737837,1749223835086,-440.0,0.00019178,2]
[364737838,1749223835096,-440.0,0.00019178,2]
[364737839,1749223835105,-440.0,0.00019178,2]
[364737840,1749223835115,-440.0,0.00019178,2]
[364737841,1749223835125,-340.0,0.00019178,2]
[364737842,1749223835135,-450.45932334,0.00019178,2]
[364737843,1749223835145,-515.40924489,0.00019178,2]
[364737844,1749223835155,-440.0,0.00019178,2]
[364737845,1749223835164,-322.46745027,0.00019178,2]
[364737846,1749223835174,-440.0,0.00019178,2]
[364737847,1749223835183,-440.0,0.00019178,2]
[364737848,1749223835193,-440.0,0.00019178,2]
[364737850,1749223835202,-440.0,0.00019178,2]
[364737852,1749223835212,-432.40168516,0.00019178,2]
[364737854,1749223835222,-440.0,0.00019178,2]
[364737856,1749223835232,-577.00179121,0.00019178,2]
[364737858,1749223835242,-163.47970621,0.00019178,2]
[364737860,1749223835251,-440.0,0.00019178,2]
[364737862,1749223835261,-440.0,0.00019178,2]
[364737864,1749223835270,-440.0,0.00019178,2]
[364737866,1749223835280,-434.20529704,0.00019178,2]
[364737868,1749223835289,-405.24497119,0.00019178,2]
[364737870,1749223835299,-440.0,0.00019178,2]
[364737872,1749223835308,-458.47,0.00019178,2]
[364737874,1749223835318,-457.65377488,0.00019178,2]
[364737876,1749223835327,-440.0,0.00019178,2]
[364737878,1749223835337,-440.0,0.00019178,2]
[364737880,1749223835347,-436.72252352,0.00019178,2]
[364737882,1749223835356,-432.70753572,0.00019178,2]
[364737884,1749223835366,-434.09308653,0.00019178,2]
[364737886,1749223835375,-230.83379737,0.00019178,2]
[364737888,1749223835384,-430.92189797,0.00019178,2]
[364737890,1749223835393,-430.0,0.00019178,2]
[364737892,1749223835403,-494.03,0.00019178,2]
[364737894,1749223835413,-430.0,0.00019178,2]
[364737896,1749223835422,-440.0,0.00019178,2]
[364737898,1749223835432,-440.0,0.00019178,2]
[364737900,1749223835442,-485.38,0.00019178,2]
[364737902,1749223835451,-432.29220232,0.00019178,2]
[364737904,1749223835461,-430.0,0.00019178,2]
[364737906,1749223835471,-440.0,0.00019178,2]
[364737908,1749223835480,-440.0,0.00019178,2]
[364737910,1749223835490,-440.0,0.00019178,2]
[364737912,1749223835499,-440.0,0.00019178,2]
[364737914,1749223835508,-483.11301354,0.00019178,2]
[364737916,1749223835517,-440.0,0.00019178,2]
[364737918,1749223835527,-208.40108148,0.00019178,2]
[364737920,1749223835537,-440.0,0.00019178,2]
[364737922,1749223835546,-158.21288016,0.00019178,2]
[364737924,1749223835556,-430.94103402,0.00019178,2]
[364737926,1749223835568,-440.0,0.00019178,2]
[364737927,1749223835578,-440.0,0.00019178,2]
[364737929,1749223835588,-430.0,0.00019178,2]
[364737931,1749223835598,-440.0,0.00019178,2]
[364737933,1749223835609,-500.0,0.00019178,2]
[364737935,1749223835620,-401.38330337,0.00019178,2]
[364737937,1749223835629,-440.0,0.00019178,2]
[364737939,1749223835640,-440.0,0.00019178,2]
[364737942,1749223835651,-440.0,0.00019178,2]
[364737943,1749223835662,-440.0,0.00019178,2]
[364737945,1749223835671,-440.0,0.00019178,2]
[364737947,1749223835681,-442.71129028,0.00019178,2]
[364737950,1749223835691,-440.0,0.00019178,2]
[364737951,1749223835700,-430.0,0.00019178,2]
[364737953,1749223835710,-440.0,0.00019178,2]
[364737956,1749223835720,-328.58521431,0.00019178,2]
[364737957,1749223835731,-440.0,0.00019178,2]
[364737959,1749223835740,-440.0,0.00019178,2]
[364737961,1749223835750,-440.0,0.00019178,2]
[364737963,1749223835759,-440.0,0.00019178,2]
[364737965,1749223835769,-403.0915123,0.00019178,2]
[364737967,1749223835778,-430.0,0.00019178,2]
[364737969,1749223835788,-430.56809899,0.00019178,2]
[364737972,1749223835798,-500.0,0.00019178,2]
[364737973,1749223835808,-440.0,0.00019178,2]
[364737975,1749223835818,-440.0,0.00019178,2]
[364737977,1749223835827,-440.0,0.00019178,2]
[364737979,1749223835837,-339.92019048,0.00019178,2]
[364737982,1749223835847,-440.0,0.00019178,2]
[364737984,1749223835856,-440.0,0.00019178,2]
[364737986,1749223835866,-430.0,0.00019178,2]
[364737988,1749223835875,-430.0,0.00019178,2]
[364737989,1749223835885,-440.0,0.00019178,2]
[364737991,1749223835895,-550.95604686,0.00019178,2]
[364737994,1749223835905,-490.25386461,0.00019178,2]
[364737996,1749223835914,-430.0,0.00019178,2]
[364737998,1749223835924,-440.0,0.00019178,2]
[364738000,1749223835933,-440.0,0.00019178,2]
[364738001,1749223835942,-430.0,0.00019178,2]
[364738003,1749223835951,-430.0,0.00019178,2]
[364738005,1749223835961,-430.80518927,0.00019178,2]
[364738007,1749223835970,-440.0,0.00019178,2]
[364738009,1749223835979,-435.7739596,0.00019178,2]
[364738011,1749223835989,-440.0,0.00019178,2]
[364738013,1749223835999,-443.32851862,0.00019178,2]
[364738015,1749223836008,-430.0,0.00019178,2]
[364738017,1749223836017,-440.0,0.00019178,2]
[364738019,1749223836027,-758.37,0.00019178,2]
[364738021,1749223836037,-440.0,0.00019178,2]
[364738023,1749223836046,-440.0,0.00019178,2]
[364738025,1749223836056,-440.0,0.00019178,2]
[364738027,1749223836066,-271.02711361,0.00019178,2]
[364738029,1749223836077,-440.0,0.00019178,2]
[364738032,1749223836087,-440.0,0.00019178,2]
[364738033,1749223836096,-440.0,0.00019178,2]
[364738035,1749223836105,-440.0,0.00019178,2]
[364738037,1749223836115,-440.0,0.00019178,2]
[364738040,1749223836124,-440.0,0.00019178,2]
[364738041,1749223836134,-430.0,0.00019178,2]
[364738044,1749223836144,-440.0,0.00019178,2]
[364738046,1749223836153,-432.29216292,0.00019178,2]
[364738047,1749223836163,-431.74099006,0.00019178,2]
[364738049,1749223836172,-440.0,0.00019178,2]
[364738052,1749223836181,-440.0,0.00019178,2]
[364738053,1749223836191,-440.0,0.00019178,2]
[364738055,1749223836200,-440.0,0.00019178,2]
[364738057,1749223836210,-440.0,0.00019178,2]
[364738059,1749223836219,-435.41615835,0.00019178,2]
[364738061,1749223836229,-440.0,0.00019178,2]
[364738063,1749223836238,-430.0,0.00019178,2]
[364738065,1749223836248,-440.0,0.00019178,2]
[364738068,1749223836258,-413.30646775,0.00019178,2]
[364738069,1749223836267,-440.0,0.00019178,2]
[364738071,1749223836277,-440.0,0.00019178,2]
[364738073,1749223836286,-747.21,0.00019178,2]
[364738076,1749223836296,-440.0,0.00019178,2]
[364738077,1749223836305,-188.0,0.00019178,2]
[364738080,1749223836315,-440.0,0.00019178,2]
[364738082,1749223836324,-440.964079,0.00019178,2]
[364738084,1749223836333,-440.0,0.00019178,2]
[364738086,1749223836343,-440.0,0.00019178,2]
[364738088,1749223836353,-440.0,0.00019178,2]
[364738090,1749223836364,-440.0,0.00019178,2]
[364738092,1749223836373,-444.21661399,0.00019178,2]
[364738093,1749223836382,-440.0,0.00019178,2]
[364738095,1749223836392,-440.0,0.00019178,2]